fUST/lending_fUST_20250816
["ID","MTS","AMOUNT","RATE_DAILY","PERIOD"]
[379559529,1755333045900,-480.0,0.00022191,3]
[379559530,1755333045910,-151.0,0.00022191,7]
[379559531,1755333045919,-575.176976,0.00022191,7]
[379559532,1755333045928,-151.0,0.00022191,7]
[379559533,1755333045937,-480.0,0.00022191,3]
[379559534,1755333045947,-480.0,0.00022191,3]
[379559535,1755333045958,-575.176976,0.00022191,7]
[379559536,1755333045967,-480.0,0.00022191,3]
[379559537,1755333045976,-480.0,0.00022191,3]
[379559538,1755333045985,-224.534692,0.00022191,7]
[379559539,1755333045995,-421.74596305,0.00022191,3]
[379559540,1755333046006,-480.0,0.00022191,3]
[379559541,1755333046015,-480.0,0.00022191,3]
[379559542,1755333046025,-480.0,0.00022191,3]
[379559543,1755333046035,-480.0,0.00022191,3]
[379559544,1755333046045,-224.534692,0.00022191,7]
[379559545,1755333046054,-480.0,0.00022191,3]
[379559546,1755333046063,-480.0,0.00022191,3]
[379559547,1755333046073,-480.0,0.00022191,3]
[379559548,1755333046083,-480.0,0.00022191,3]
[379559549,1755333046092,-420.0,0.00022191,3]
[379559550,1755333046102,-360.0,0.00022191,3]
[379559551,1755333046111,-480.0,0.00022191,3]
[379559552,1755333046120,-949.14,0.00022191,3]
[379559553,1755333046130,-480.0,0.00022191,3]
[379559554,1755333046139,-564.97,0.00022191,3]
[379559555,1755333046148,-404.10101837,0.00022191,3]
[379559556,1755333046157,-480.0,0.00022191,3]
[379559557,1755333046166,-460.0,0.00022191,3]
[379559558,1755333046175,-440.0,0.00022191,3]
[379559559,1755333046184,-480.0,0.00022191,3]
[379559561,1755333046193,-547.9,0.00022191,3]
[379559563,1755333046202,-480.0,0.00022191,3]
[379559564,1755333046211,-2259.49,0.00022191,3]
[379559565,1755333046220,-480.0,0.00022191,3]
[379559566,1755333046229,-480.0,0.00022191,3]
[379559567,1755333046238,-480.0,0.00022191,3]
[379559568,1755333046248,-460.0,0.00022191,3]
[379559570,1755333046257,-1309.75,0.00022191,3]
[379559572,1755333046267,-527.046438,0.00022191,7]
[379559574,1755333046275,-527.046438,0.00022191,7]
[379559575,1755333046285,-440.0,0.00022191,3]
[379559576,1755333046295,-480.0,0.00022191,3]
[379559577,1755333046304,-480.0,0.00022191,3]
[379559578,1755333046313,-480.0,0.00022191,3]
[379559579,1755333046323,-527.046438,0.00022191,7]
[379559580,1755333046333,-527.046438,0.00022191,7]
[379559581,1755333046345,-480.0,0.00022191,3]
[379559582,1755333046355,-480.0,0.00022191,3]
[379559583,1755333046364,-480.0,0.00022191,3]
[379559584,1755333046374,-480.0,0.00022191,3]
[379559585,1755333046383,-480.0,0.00022191,3]
[379559586,1755333046391,-480.0,0.00022191,3]
[379559587,1755333046401,-480.0,0.00022191,3]
[379559588,1755333046411,-480.0,0.00022191,3]
[379559589,1755333046422,-480.0,0.00022191,3]
[379559590,1755333046432,-420.0,0.00022191,3]
[379559591,1755333046441,-480.0,0.00022191,3]
[379559592,1755333046450,-480.0,0.00022191,3]
[379559593,1755333046459,-480.0,0.00022191,3]
[379559594,1755333046469,-480.0,0.00022191,3]
[379559595,1755333046478,-480.0,0.00022191,3]
[379559596,1755333046487,-480.0,0.00022191,3]
[379559597,1755333046498,-420.0,0.00022191,3]
[379559598,1755333046507,-151.0,0.00022191,7]
[379559599,1755333046517,-480.0,0.00022191,3]
[379559600,1755333046526,-460.0,0.00022191,3]
[379559601,1755333046537,-480.0,0.00022191,3]
[379559602,1755333046548,-480.0,0.00022191,3]
[379559603,1755333046558,-480.0,0.00022191,3]
[379559604,1755333046571,-480.0,0.00022191,3]
[379559605,1755333046592,-151.0,0.00022191,7]
[379559606,1755333046611,-480.0,0.00022191,3]
[379559607,1755333046631,-151.0,0.00022191,7]
[379559608,1755333046647,-480.0,0.00022191,3]
[379559609,1755333046656,-4698.9,0.00022191,3]
[379559610,1755333046665,-480.0,0.00022191,3]
[379559611,1755333046675,-480.0,0.00022191,3]
[379559612,1755333046684,-380.0,0.00022191,3]
[379559613,1755333046693,-480.0,0.00022191,3]
[379559614,1755333046702,-480.0,0.00022191,3]
[379559615,1755333046711,-500.96115872,0.00022191,3]
[379559616,1755333046721,-480.0,0.00022191,3]
[379559617,1755333046731,-536.11,0.00022191,3]
[379559618,1755333046740,-480.0,0.00022191,3]
[379559619,1755333046749,-480.0,0.00022191,3]
[379559620,1755333046758,-480.0,0.00022191,3]
[379559621,1755333046767,-420.0,0.00022191,3]
[379559622,1755333046777,-551.5458643,0.00022191,3]
[379559623,1755333046787,-534.64,0.00022191,3]
[379559624,1755333046796,-480.0,0.00022191,3]
[379559625,1755333046806,-421.5417302,0.00022191,3]
[379559626,1755333046815,-480.0,0.00022191,3]
[379559627,1755333046824,-480.0,0.00022191,3]
[379559628,1755333046833,-480.0,0.00022191,3]
[379559629,1755333046844,-480.0,0.00022191,3]
[379559630,1755333046853,-420.0,0.00022191,3]
[379559631,1755333046862,-480.0,0.00022191,3]
[379559632,1755333046871,-460.0,0.00022191,3]
[379559633,1755333046880,-547.68,0.00022191,3]
[379559634,1755333046889,-480.0,0.00022191,3]
[379559635,1755333046898,-480.0,0.00022191,3]
[379559636,1755333046907,-480.0,0.00022191,3]
[379559637,1755333046916,-1768.76,0.00022191,3]
[379559638,1755333047046,-460.0,0.00022191,3]
[379559639,1755333047056,-480.0,0.00022191,3]
[379559640,1755333047065,-660.75,0.00022191,3]
[379559641,1755333047075,-480.0,0.00022191,3]
[379559642,1755333047085,-480.0,0.00022191,3]
[379559643,1755333047095,-870.21,0.00022191,3]
[379559644,1755333047105,-175.751243,0.00022191,7]
[379559645,1755333047114,-175.751243,0.00022191,7]
[379559646,1755333047124,-151.0,0.00022191,7]
[379559647,1755333047133,-151.0,0.00022191,7]
[379559648,1755333047142,-480.0,0.00022191,3]
[379559649,1755333047151,-175.751243,0.00022191,7]
[379559650,1755333047160,-175.751243,0.00022191,7]
[379559651,1755333047169,-257.90426437,0.00022191,3]
[379559652,1755333047178,-1927.42,0.00022191,3]
[379559653,1755333047187,-480.0,0.00022191,3]
[379559654,1755333047197,-803.71,0.00022191,3]
[379559655,1755333047207,-915.51,0.00022191,3]
[379559656,1755333047217,-1364.773402,0.00022191,7]
[379559657,1755333047227,-1364.773402,0.00022191,7]
[379559658,1755333047237,-188.556662,0.00022191,7]
[379559659,1755333047248,-188.556662,0.00022191,7]
[379559660,1755333047257,-503.20190082,0.00022191,3]
[379559661,1755333047269,-480.0,0.00022191,3]
[379559662,1755333047278,-1364.773402,0.00022191,7]
[379559663,1755333047288,-188.556662,0.00022191,7]
[379559664,1755333047298,-1364.773402,0.00022191,7]
[379559665,1755333047307,-188.556662,0.00022191,7]
[379559666,1755333047316,-480.0,0.00022191,3]
[379559667,1755333047325,-732.05,0.00022191,3]
[379559668,1755333047335,-151.0,0.00022191,7]
[379559669,1755333047347,-629.77,0.00022191,3]
[379559670,1755333047356,-151.0,0.00022191,7]
[379559671,1755333047365,-492.98,0.00022191,3]
[379559672,1755333047374,-480.0,0.00022191,3]
[379559673,1755333047384,-480.0,0.00022191,3]
[379559674,1755333047394,-480.0,0.00022191,3]
[379559675,1755333047406,-480.0,0.00022191,3]
[379559676,1755333047416,-151.0,0.00022191,7]
[379559677,1755333047427,-151.0,0.00022191,7]
[379559678,1755333047437,-480.0,0.00022191,3]
[379559679,1755333047446,-480.0,0.00022191,3]
[379559680,1755333047456,-480.0,0.00022191,3]
[379559681,1755333047465,-480.0,0.00022191,3]
[379559682,1755333047474,-499.78,0.00022191,3]
[379559683,1755333047484,-480.0,0.00022191,3]
[379559684,1755333047493,-480.0,0.00022191,3]
[379559685,1755333047503,-151.0,0.00022191,7]
[379559686,1755333047511,-151.0,0.00022191,7]
[379559687,1755333047523,-217.753691,0.00022191,7]
[379559688,1755333047540,-176.292366,0.00022191,7]
[379559689,1755333047549,-176.292366,0.00022191,7]
[379559690,1755333047558,-480.0,0.00022191,3]
[379559691,1755333047567,-176.292366,0.00022191,7]
[379559692,1755333047577,-761.72,0.00022191,3]
[379559693,1755333047586,-176.292366,0.00022191,7]
[379559694,1755333047595,-480.0,0.00022191,3]
[379559695,1755333047604,-774.77,0.00022191,3]
[379559696,1755333047613,-343.17725937,0.00022191,3]
[379559697,1755333047623,-480.0,0.00022191,3]
[379559698,1755333047632,-480.0,0.00022191,3]
[379559699,1755333047641,-540.14,0.00022191,3]
[379559700,1755333047650,-718.31,0.00022191,3]
[379559701,1755333047659,-480.0,0.00022191,3]
[379559702,1755333047669,-480.0,0.00022191,3]
[379559703,1755333047677,-480.0,0.00022191,3]
[379559704,1755333047686,-480.0,0.00022191,3]
[379559705,1755333047695,-480.0,0.00022191,3]
[379559706,1755333047704,-480.0,0.00022191,3]
[379559707,1755333047714,-5526.58,0.00022191,3]
[379559708,1755333047723,-480.0,0.00022191,3]
[379559709,1755333047732,-480.0,0.00022191,3]
[379559710,1755333047741,-480.0,0.00022191,3]
[379559711,1755333047750,-1207.41,0.00022191,3]
[379559712,1755333047760,-480.0,0.00022191,3]
[379559713,1755333047769,-767.49,0.00022191,3]
[379559714,1755333047778,-502.2059956,0.00022191,3]
[379559715,1755333047788,-1351.85,0.00022191,3]
[379559716,1755333047797,-801.84,0.00022191,3]
[379559717,1755333047806,-680.53,0.00022191,3]
[379559718,1755333047815,-480.0,0.00022191,3]
[379559719,1755333047824,-480.0,0.00022191,3]
[379559720,1755333047833,-480.0,0.00022191,3]
[379559721,1755333047842,-358.77021984,0.00022191,3]
[379559722,1755333047851,-480.0,0.00022191,3]
[379559723,1755333047860,-227.70255945,0.00022191,3]
[379559724,1755333047870,-460.0,0.00022191,3]
[379559725,1755333047879,-480.0,0.00022191,3]
[379559726,1755333047888,-3896.52,0.00022191,3]
[379559727,1755333047898,-151.0,0.00022191,7]
[379559728,1755333047909,-151.0,0.00022191,7]
[379559729,1755333047919,-480.23,0.00022191,3]
[379559730,1755333047928,-386.43642404,0.00022191,3]
[379559731,1755333047938,-480.0,0.00022191,3]
[379559732,1755333047947,-406.98515145,0.00022191,3]
[379559733,1755333047957,-480.0,0.00022191,3]
[379559734,1755333047966,-480.0,0.00022191,3]
[379559735,1755333047976,-440.0,0.00022191,3]
[379559736,1755333047986,-592.01,0.00022191,3]
[379559737,1755333047995,-1858.51,0.00022191,3]
[379559738,1755333048006,-480.0,0.00022191,3]
[379559739,1755333048015,-480.0,0.00022191,3]
[379559740,1755333048025,-480.0,0.00022191,3]
[379559741,1755333048035,-480.0,0.00022191,3]
[379559742,1755333048044,-480.0,0.00022191,3]
[379559743,1755333048053,-1759.6,0.00022191,3]
[379559744,1755333048064,-480.0,0.00022191,3]
[379559745,1755333048073,-480.0,0.00022191,3]
[379559746,1755333048082,-480.0,0.00022191,3]
[379559747,1755333048092,-400.0,0.00022191,3]
[379559748,1755333048101,-480.0,0.00022191,3]
[379559749,1755333048110,-400.0,0.00022191,3]
[379559750,1755333048119,-480.0,0.00022191,3]
[379559751,1755333048129,-151.22213,0.00022191,7]
[379559752,1755333048139,-151.22213,0.00022191,7]
[379559753,1755333048148,-480.0,0.00022191,3]
[379559754,1755333048158,-591.50380147,0.00022191,3]
[379559755,1755333048167,-151.22213,0.00022191,7]
[379559756,1755333048176,-151.22213,0.00022191,7]
[379559757,1755333048185,-480.0,0.00022191,3]
[379559758,1755333048195,-480.0,0.00022191,3]
[379559759,1755333048204,-480.0,0.00022191,3]
[379559760,1755333048213,-480.0,0.00022191,2]
[379559761,1755333048223,-480.0,0.00022191,3]
[379559762,1755333048232,-215.68093138,0.00022191,7]
[379559763,1755333048241,-480.0,0.00022191,3]
[379559764,1755333048251,-1254.11,0.00022191,3]
[379559765,1755333048260,-634.76,0.00022191,3]
[379559766,1755333048270,-507.92,0.00022191,3]
[379559767,1755333048279,-480.0,0.00022191,3]
[379559768,1755333048288,-151.0,0.00022191,7]
[379559769,1755333048298,-151.0,0.00022191,7]
[379559770,1755333048307,-552.17,0.00022191,3]
[379559771,1755333048317,-151.0,0.00022191,7]
[379559772,1755333048326,-480.0,0.00022191,3]
[379559773,1755333048336,-360.0,0.00022191,3]
[379559774,1755333048349,-480.0,0.00022191,3]
[379559775,1755333048358,-420.0,0.00022191,3]
[379559776,1755333048367,-505.46,0.00022191,3]
[379559777,1755333048376,-480.0,0.00022191,3]
[379559778,1755333048387,-418.71789,0.00022191,7]
[379559779,1755333048397,-971.33,0.00022191,3]
[379559780,1755333048407,-480.0,0.00022191,3]
[379559781,1755333048417,-418.71789,0.00022191,7]
[379559782,1755333048427,-480.0,0.00022191,3]
[379559783,1755333048436,-480.0,0.00022191,3]
[379559784,1755333048445,-705.53,0.00022191,3]
[379559785,1755333048454,-480.0,0.00022191,3]
[379559786,1755333048464,-480.0,0.00022191,3]
[379559787,1755333048473,-480.0,0.00022191,3]
[379559788,1755333048482,-418.71789,0.00022191,7]
[379559789,1755333048491,-380.0,0.00022191,3]
[379559790,1755333048500,-418.71789,0.00022191,7]
[379559791,1755333048510,-480.0,0.00022191,3]
[379559792,1755333048519,-480.0,0.00022191,3]
[379559793,1755333048529,-480.0,0.00022191,3]
[379559794,1755333048539,-5172.14,0.00022191,3]
[379559795,1755333048548,-480.0,0.00022191,3]
[379559796,1755333048557,-480.0,0.00022191,3]
[379559797,1755333048567,-339.26525746,0.00022191,3]
[379559798,1755333048576,-2374.5,0.00022191,3]
[379559799,1755333048585,-360.68800541,0.00022191,3]
[379559800,1755333048596,-744.78,0.00022191,3]
[379559801,1755333048607,-534.18063631,0.00022191,3]
[379559802,1755333048617,-480.0,0.00022191,3]
[379559803,1755333048626,-480.0,0.00022191,3]
[379559804,1755333048636,-480.0,0.00022191,3]
[379559805,1755333048645,-480.0,0.00022191,3]
[379559806,1755333048655,-164.41364983,0.00022191,3]
[379559807,1755333048666,-480.0,0.00022191,3]
[379559808,1755333048675,-480.0,0.00022191,3]
[379559809,1755333048684,-480.0,0.00022191,3]
[379559810,1755333048694,-972.52,0.00022191,3]
[379559811,1755333048703,-670.23,0.00022191,3]
[379559812,1755333048713,-290.14334733,0.00022191,3]
[379559813,1755333048723,-462.1417622,0.00022191,7]
[379559814,1755333048733,-480.0,0.00022191,3]
[379559815,1755333048743,-363.32898578,0.00022191,3]
[379559816,1755333048752,-480.0,0.00022191,3]
[379559817,1755333048761,-480.0,0.00022191,3]
[379559818,1755333048770,-480.0,0.00022191,3]
[379559819,1755333048779,-480.0,0.00022191,3]
[379559820,1755333048788,-440.0,0.00022191,3]
[379559821,1755333048798,-480.0,0.00022191,3]
[379559822,1755333048809,-10463.82,0.00022191,3]
[379559823,1755333048819,-480.0,0.00022191,3]
[379559824,1755333048828,-480.0,0.00022191,3]
[379559825,1755333048838,-480.0,0.00022191,3]
[379559826,1755333048847,-614.94745652,0.00022212,2]
[379559827,1755333048856,-689.95132764,0.00022247,2]
[379559828,1755333048866,-1021.90440078,0.00022266,2]
[379559829,1755333048875,-616.6592554,0.0002227,2]
[379559830,1755333048885,-800.0,0.00022313,2]
[379559831,1755333048894,-200.0,0.0002233,20]
[379559832,1755333048904,-200.0,0.0002233,20]
[379559833,1755333048914,-200.0,0.0002233,20]
[379559834,1755333048923,-200.0,0.0002233,20]
[379559835,1755333048932,-200.0,0.0002233,20]
[379559836,1755333048941,-200.0,0.0002233,20]
[379559837,1755333048951,-200.0,0.0002233,20]
[379559838,1755333048960,-200.0,0.0002233,20]
[379559839,1755333048970,-200.0,0.0002233,20]
[379559840,1755333048979,-200.0,0.0002233,20]
[379559841,1755333048988,-240.0,0.0002233,20]
[379559842,1755333048998,-151.22213,0.00022345,7]
[379559843,1755333049008,-151.22213,0.00022345,7]
[379559844,1755333049018,-689.95132764,0.00022356,2]
[379559845,1755333049027,-220463.14920822,0.00022365,2]
[379559846,1755333049202,-12971.32544934,0.00022365,2]
[379559847,1755333049384,-843.58077381,0.00021321,2]
[379559848,1755333049395,-480.0,0.00021917,3]
[379559849,1755333049405,-480.0,0.00021917,3]
[379559850,1755333049414,-480.0,0.00022191,3]
[379559851,1755333049424,-55338.31156485,0.00022365,2]
[379559852,1755333049434,-166.091357,0.00022365,7]
[379559853,1755333049443,-166.091357,0.00022365,7]
[379559854,1755333049452,-151.0,0.00022365,7]
[379559855,1755333049462,-223.692644,0.00022365,7]
[379559856,1755333049472,-151.701307,0.00022365,7]
[379559857,1755333049481,-151.701307,0.00022365,7]
[379559858,1755333049491,-151.0,0.00022365,7]
[379559859,1755333049500,-575.176976,0.00022365,7]
[379559860,1755333049509,-151.0,0.00022365,7]
[379559861,1755333049519,-575.176976,0.00022365,7]
[379559862,1755333049528,-224.534692,0.00022365,7]
[379559863,1755333049665,-224.534692,0.00022365,7]
[379559864,1755333049674,-527.046438,0.00022365,7]
[379559865,1755333049683,-527.046438,0.00022365,7]
[379559866,1755333049692,-151.0,0.00022365,7]
[379559867,1755333049702,-175.751243,0.00022365,7]
[379559868,1755333049712,-151.0,0.00022365,7]
[379559869,1755333049721,-175.751243,0.00022365,7]
[379559870,1755333049730,-1364.773402,0.00022365,7]
[379559871,1755333049739,-188.556662,0.00022365,7]
[379559872,1755333049748,-603.06448584,0.00022365,2]
[379559873,1755333049757,-1364.773402,0.00022365,7]
[379559874,1755333049766,-188.556662,0.00022365,7]
[379559875,1755333049775,-151.0,0.00022365,7]
[379559876,1755333049785,-151.0,0.00022365,7]
[379559877,1755333049794,-151.0,0.00022365,7]
[379559878,1755333049804,-151.0,0.00022365,7]
[379559879,1755333049814,-176.292366,0.00022365,7]
[379559880,1755333049823,-176.292366,0.00022365,7]
[379559881,1755333049832,-151.0,0.00022365,7]
[379559882,1755333049841,-151.22213,0.00022365,7]
[379559883,1755333049850,-151.22213,0.00022365,7]
[379559884,1755333049859,-151.0,0.00022365,7]
[379559885,1755333049869,-418.71789,0.00022365,7]
[379559886,1755333049878,-418.71789,0.00022365,7]
[379559887,1755333049887,-472.67148137,0.00022373,2]
[379559888,1755333049896,-645.34216857,0.00022373,2]
[379559889,1755333049905,-500.0,0.00022373,2]
[379559890,1755333049915,-500.0,0.00022373,2]
[379559891,1755333049924,-338.34643221,0.00022373,2]
[379559892,1755333049934,-603.83431306,0.00022373,2]
[379559893,1755333049943,-500.0,0.00022373,2]
[379559894,1755333049952,-500.0,0.00022373,2]
[379559895,1755333049961,-500.0,0.00022373,2]
[379559896,1755333049970,-500.0,0.00022373,2]
[379559897,1755333049979,-500.0,0.00022373,2]
[379559898,1755333049988,-298.81082974,0.00022373,2]
[379559899,1755333049997,-500.0,0.00022373,2]
[379559900,1755333050006,-500.0,0.00022373,2]
[379559901,1755333050016,-452.59136052,0.00022373,2]
[379559902,1755333050025,-500.0,0.00022373,2]
[379559903,1755333050035,-500.0,0.00022373,2]
[379559904,1755333050045,-500.0,0.00022373,2]
[379559905,1755333050054,-500.0,0.00022373,2]
[379559906,1755333050063,-615.63278151,0.00022373,2]
[379559907,1755333050072,-188.62142309,0.00022373,2]
[379559908,1755333050082,-500.0,0.00022373,2]
[379559909,1755333050092,-1671.57930987,0.00022397,2]
[379559910,1755333050102,-151.0,0.00022397,7]
[379559911,1755333050111,-151.0,0.00022397,7]
[379559912,1755333050120,-800.0,0.00022398,2]
[379559913,1755333050129,-195.0,0.00022403,2]
[379559914,1755333050139,-800.0,0.00022432,2]
[379559915,1755333050148,-564.09388941,0.0002244,2]
[379559916,1755333050157,-237.238756,0.00022465,7]
[379559917,1755333050167,-237.238756,0.00022465,7]
[379559918,1755333050176,-151.0,0.00022465,7]
[379559919,1755333050186,-151.0,0.00022465,7]
[379559920,1755333050195,-480.0,0.00022465,3]
[379559921,1755333050204,-420.0,0.00022465,3]
[379559922,1755333050214,-480.0,0.00022465,3]
[379559923,1755333050223,-480.0,0.00022465,3]
[379559924,1755333050232,-480.0,0.00022465,3]
[379559925,1755333050241,-293.051986,0.00022465,7]
[379559926,1755333050251,-345.16919065,0.00022465,3]
[379559927,1755333050260,-293.051986,0.00022465,7]
[379559928,1755333050270,-480.0,0.00022465,3]
[379559929,1755333050280,-151.0,0.00022465,7]
[379559930,1755333050290,-420.0,0.00022465,3]
[379559931,1755333050300,-480.0,0.00022465,3]
[379559932,1755333050309,-480.0,0.00022465,3]
[379559933,1755333050319,-480.0,0.00022465,3]
[379559934,1755333050329,-440.0,0.00022465,3]
[379559935,1755333050342,-480.0,0.00022465,3]
[379559936,1755333050351,-480.0,0.00022465,3]
[379559937,1755333050360,-420.0,0.00022465,3]
[379559938,1755333050369,-420.0,0.00022465,3]
[379559939,1755333050379,-480.0,0.00022465,3]
[379559940,1755333050388,-480.0,0.00022465,3]
[379559941,1755333050397,-480.0,0.00022465,3]
[379559942,1755333050407,-480.0,0.00022465,3]
[379559943,1755333050416,-480.0,0.00022465,3]
[379559944,1755333050426,-340.0,0.00022465,3]
[379559945,1755333050435,-480.0,0.00022465,3]
[379559946,1755333050444,-480.0,0.00022465,3]
[379559947,1755333050453,-480.0,0.00022465,3]
[379559948,1755333050462,-480.0,0.00022465,3]
[379559949,1755333050471,-420.0,0.00022465,3]
[379559950,1755333050481,-480.0,0.00022465,3]
[379559951,1755333050491,-480.0,0.00022465,3]
[379559952,1755333050501,-480.0,0.00022465,3]
[379559953,1755333050511,-157.57913033,0.00022465,3]
[379559954,1755333050520,-480.0,0.00022465,3]
[379559955,1755333050530,-480.0,0.00022465,3]
[379559956,1755333050539,-480.0,0.00022465,3]
[379559957,1755333050550,-768.56,0.00022465,3]
[379559958,1755333050560,-480.0,0.00022465,3]
[379559959,1755333050569,-440.0,0.00022465,3]
[379559960,1755333050579,-480.0,0.00022465,3]
[379559961,1755333050588,-480.0,0.00022465,3]
[379559962,1755333050598,-480.0,0.00022465,3]
[379559963,1755333050607,-480.0,0.00022465,3]
[379559964,1755333050617,-480.0,0.00022465,3]
[379559965,1755333050626,-440.0,0.00022465,3]
[379559966,1755333050635,-151.0,0.00022465,7]
[379559967,1755333050645,-235.1457587,0.00022465,3]
[379559968,1755333050654,-480.0,0.00022465,3]
[379559969,1755333050663,-151.0,0.00022465,7]
[379559970,1755333050672,-480.0,0.00022465,3]
[379559971,1755333050681,-604.29925035,0.00022465,3]
[379559972,1755333050691,-460.0,0.00022465,3]
[379559973,1755333050700,-480.0,0.00022465,3]
[379559974,1755333050710,-3445.9,0.00022465,3]
[379559975,1755333050719,-603.12,0.00022465,3]
[379559976,1755333050730,-340.0,0.00022465,3]
[379559977,1755333050740,-423.70009574,0.00022465,3]
[379559978,1755333050750,-610.12943331,0.00022465,3]
[379559979,1755333050759,-166.091357,0.00022465,7]
[379559980,1755333050769,-480.0,0.00022465,3]
[379559981,1755333050779,-166.091357,0.00022465,7]
[379559982,1755333050789,-480.0,0.00022465,3]
[379559983,1755333050799,-999.82,0.00022465,3]
[379559984,1755333050808,-151.0,0.00022465,7]
[379559985,1755333050817,-407.1294325,0.00022465,3]
[379559986,1755333050826,-557.55,0.00022465,3]
[379559987,1755333050836,-459.27443585,0.00022465,3]
[379559988,1755333050845,-151.0,0.00022465,7]
[379559989,1755333050854,-460.0,0.00022465,3]
[379559990,1755333050863,-480.0,0.00022465,3]
[379559991,1755333050872,-460.0,0.00022465,3]
[379559992,1755333050881,-480.0,0.00022465,3]
[379559993,1755333050892,-480.0,0.00022465,3]
[379559994,1755333050906,-480.0,0.00022465,3]
[379559995,1755333050920,-480.0,0.00022465,3]
[379559996,1755333050935,-480.0,0.00022465,3]
[379559997,1755333050946,-480.0,0.00022465,3]
[379559998,1755333050959,-440.0,0.00022465,3]
[379559999,1755333050973,-151.701307,0.00022465,7]
[379560000,1755333050986,-480.0,0.00022465,3]
[379560001,1755333051000,-480.0,0.00022465,3]
[379560002,1755333051013,-151.701307,0.00022465,7]
[379560003,1755333051025,-480.0,0.00022465,3]
[379560004,1755333051042,-181.393424,0.00022465,7]
[379560005,1755333051055,-181.393424,0.00022465,7]
[379560006,1755333051068,-480.0,0.00022465,3]
[379560007,1755333051080,-151.0,0.00022465,7]
[379560008,1755333051092,-575.176976,0.00022465,7]
[379560009,1755333051107,-151.0,0.00022465,7]
[379560010,1755333051119,-451.40347062,0.00022465,3]
[379560011,1755333051131,-480.0,0.00022465,3]
[379560012,1755333051142,-575.176976,0.00022465,7]
[379560013,1755333051155,-480.0,0.00022465,3]
[379560014,1755333051167,-440.0,0.00022465,3]
[379560015,1755333051181,-224.534692,0.00022465,7]
[379560016,1755333051194,-480.0,0.00022465,3]
[379560017,1755333051207,-480.0,0.00022465,3]
[379560018,1755333051220,-480.0,0.00022465,3]
[379560019,1755333051235,-480.0,0.00022465,3]
[379560020,1755333051250,-224.534692,0.00022465,7]
[379560021,1755333051261,-480.0,0.00022465,3]
[379560022,1755333051273,-480.0,0.00022465,3]
[379560023,1755333051287,-480.0,0.00022465,3]
[379560024,1755333051300,-480.0,0.00022465,3]
[379560025,1755333051315,-949.14,0.00022465,3]
[379560026,1755333051328,-480.0,0.00022465,3]
[379560027,1755333051342,-564.97,0.00022465,3]
[379560028,1755333051353,-480.0,0.00022465,3]
[379560029,1755333051364,-480.0,0.00022465,3]
[379560030,1755333051379,-2259.49,0.00022465,3]
[379560031,1755333051390,-480.0,0.00022465,3]
[379560032,1755333051400,-480.0,0.00022465,3]
[379560033,1755333051411,-480.0,0.00022465,3]